lending/lending_fUSD_20240610
["ID","MTS","AMOUNT","RATE_DAILY","PERIOD"]
[328980295,1718040639443,-250.0,0.0002636,2]
[328980296,1718040639453,-338.57,0.0002636,2]
[328980297,1718040639463,-175.91858515,0.00026516,2]
[328980298,1718040639474,-155.45,0.00026518,2]
[328980299,1718040639485,-153.35399962,0.00026525,2]
[328980300,1718040639513,-164.14976813,0.00026567,2]
[328980301,1718040639544,-2057.12529549,0.000266,2]
[328980302,1718040639577,-229.84,0.00026603,2]
[328980304,1718040639608,-162.46757151,0.00026606,2]
[328980306,1718040639630,-159.85713231,0.00026617,2]
[328980308,1718040639661,-154.94726371,0.00026649,2]
[328980310,1718040639684,-175.91858515,0.00026659,2]
[328980311,1718040639701,-153.33956031,0.00026667,2]
[328980313,1718040639711,-163.48925101,0.00026674,2]
[328980315,1718040639722,-150.0,0.00026678,2]
[328980317,1718040639732,-162.46757151,0.00026695,2]
[328980319,1718040639743,-337.78,0.00026733,2]
[328980321,1718040639753,-800.0,0.00026795,2]
[328980323,1718040639765,-154.94726371,0.00026853,2]
[328980325,1718040639775,-175.91858515,0.00026872,2]
[328980327,1718040639786,-166.91073827,0.00026922,2]
[328980329,1718040639797,-172.83,0.0002695,2]
[328980331,1718040639807,-162.46757151,0.00026982,2]
[328980333,1718040639817,-424.35038744,0.00026998,2]
[328980335,1718040639828,-162.46757151,0.00027047,2]
[328980337,1718040639838,-175.91858515,0.00027078,2]
[328980339,1718040639848,-153.33956031,0.00027158,2]
[328980341,1718040639858,-159.85713231,0.00027181,2]
[328980343,1718040639868,-175.91858515,0.00027226,2]
[328980345,1718040639878,-155.91427048,0.00027237,2]
[328980346,1718040639888,-154.94726371,0.0002724,2]
[328980349,1718040639899,-162.46757151,0.00027254,2]
[328980350,1718040639909,-159.85713231,0.00027325,2]
[328980353,1718040639920,-154.94726371,0.0002737,2]
[328980354,1718040639931,-162.52,0.000274,2]
[328980357,1718040639941,-153.33956031,0.00027502,2]
[328980359,1718040639952,-153.35399962,0.00027533,2]
[328980361,1718040639962,-153.33956031,0.00027537,2]
[328980363,1718040639972,-155.00188313,0.00027686,2]
[328980365,1718040639983,-168.44763137,0.00027722,2]
[328980367,1718040639993,-159.85713231,0.0002775,2]
[328980369,1718040640004,-153.33956031,0.00027751,2]
[328980371,1718040640015,-153.35399962,0.00027761,2]
[328980373,1718040640026,-177.305,0.00027815,2]
[328980375,1718040640037,-164.0,0.00027815,2]
[328980377,1718040640047,-2394.0,0.00027815,2]
[328980379,1718040640058,-157.0,0.00027815,2]
[328980381,1718040640068,-234.291,0.00027815,2]
[328980383,1718040640079,-1477.4,0.00027815,2]
[328980385,1718040640088,-150.0,0.00027815,2]
[328980387,1718040640098,-175.91858515,0.00027827,2]
[328980389,1718040640108,-155.05116646,0.00027829,2]
[328980391,1718040640120,-155.05116646,0.00027847,2]
[328980393,1718040640131,-153.33956031,0.00027855,2]
[328980395,1718040640141,-175.91858515,0.00027857,2]
[328980397,1718040640152,-175.91858515,0.00027951,2]
[328980399,1718040640162,-175.91858515,0.00027953,2]
[328980401,1718040640173,-154.94726371,0.00027981,2]
[328980403,1718040640184,-800.0,0.00028,2]
[328980405,1718040640194,-800.0,0.00028,2]
[328980407,1718040640205,-800.0,0.00028027,2]
[328980409,1718040640215,-153.33956031,0.00028127,2]
[328980411,1718040640225,-2500.0,0.00028129,2]
[328980413,1718040640234,-155.00188315,0.00028186,2]
[328980415,1718040640244,-800.0,0.00028219,2]
[328980417,1718040640254,-175.91858515,0.00028226,2]
[328980419,1718040640264,-164.14976813,0.00028233,2]
[328980421,1718040640275,-153.33956031,0.00028253,2]
[328980424,1718040640285,-153.33956031,0.00028271,2]
[328980426,1718040640296,-159.85713231,0.0002836,2]
[328980427,1718040640306,-155.05116646,0.00028464,2]
[328980430,1718040640316,-800.0,0.00028466,2]
[328980432,1718040640326,-154.94726371,0.00028471,2]
[328980434,1718040640337,-2500.0,0.00028496,2]
[328980436,1718040640347,-2009.24235392,0.00028498,2]
[328980438,1718040640358,-2360.01,0.00028525,2]
[328980440,1718040640368,-175.91858515,0.00028609,2]
[328980442,1718040640378,-175.91858515,0.00028658,2]
[328980444,1718040640390,-175.91858515,0.00028715,2]
[328980446,1718040640399,-154.94726371,0.00028768,2]
[328980448,1718040640410,-800.0,0.00028795,2]
[328980450,1718040640420,-427.99091877,0.00028812,7]
[328980452,1718040640430,-800.0,0.00028849,2]
[328980454,1718040640440,-155.91427048,0.00028857,2]
[328980456,1718040640450,-1000.0,0.0002886,2]
[328980457,1718040640461,-174.23448122,0.00028941,2]
[328980459,1718040640470,-5126.0387,0.00028941,2]
[328980461,1718040640480,-1000.0,0.00028941,2]
[328980463,1718040640490,-337.78,0.00028997,2]
[328980465,1718040640506,-312.6818423,0.00029,30]
[328980467,1718040640519,-1575.58820442,0.00029,6]
[328980469,1718040640530,-2000.0,0.00029,2]
[328980471,1718040640541,-2000.0,0.00029,2]
[328980473,1718040640556,-714.36804046,0.00029009,2]
[328980475,1718040640569,-2000.0,0.0002901,2]
[328980477,1718040640580,-3610.347277,0.0002901,2]
[328980479,1718040640591,-175.91858515,0.0002901,2]
[328980481,1718040640604,-800.0,0.00029014,2]
[328980483,1718040640614,-153.35399962,0.00029015,2]
[328980485,1718040640624,-2000.0,0.0002902,2]
[328980487,1718040640635,-2000.0,0.0002903,2]
[328980489,1718040640646,-155.59941444,0.00029037,2]
[328980491,1718040640656,-2870.04785,0.0002904,2]
[328980494,1718040640667,-614.82350366,0.00029041,4]
[328980496,1718040640678,-500.0,0.00029041,4]
[328980498,1718040640689,-500.0,0.00029041,4]
[328980499,1718040640700,-500.0,0.00029041,4]
[328980501,1718040640710,-500.0,0.00029041,4]
[328980503,1718040640720,-500.0,0.00029041,4]
[328980505,1718040640730,-500.0,0.00029041,4]
[328980508,1718040640741,-500.0,0.00029041,4]
[328980509,1718040640753,-500.0,0.00029041,4]
[328980511,1718040640763,-500.0,0.00029041,4]
[328980514,1718040640774,-500.0,0.00029041,4]
[328980516,1718040640784,-500.0,0.00029041,4]
[328980518,1718040640794,-500.0,0.00029041,4]
[328980520,1718040640803,-500.0,0.00029041,4]
[328980521,1718040640813,-500.0,0.00029041,4]
[328980523,1718040640823,-500.0,0.00029041,4]
[328980525,1718040640833,-500.0,0.00029041,4]
[328980527,1718040640843,-500.0,0.00029041,4]
[328980529,1718040640852,-500.0,0.00029041,4]
[328980531,1718040640862,-500.0,0.00029041,4]
[328980533,1718040640871,-500.0,0.00029041,4]
[328980535,1718040640880,-500.0,0.00029041,4]
[328980537,1718040640890,-500.0,0.00029041,4]
[328980539,1718040640900,-500.0,0.00029041,4]
[328980540,1718040640909,-500.0,0.00029041,4]
[328980541,1718040640919,-379.13171984,0.00029041,4]
[328980542,1718040640928,-500.0,0.00029041,4]
[328980543,1718040640937,-500.0,0.00029041,4]
[328980544,1718040640946,-500.0,0.00029041,4]
[328980545,1718040640959,-500.0,0.00029041,4]
[328980546,1718040640968,-500.0,0.00029041,4]
[328980547,1718040640977,-500.0,0.00029041,4]
[328980548,1718040640986,-500.0,0.00029041,4]
[328980549,1718040640996,-500.0,0.00029041,4]
[328980550,1718040641017,-500.0,0.00029041,4]
[328980551,1718040641026,-500.0,0.00029041,4]
[328980552,1718040641036,-500.0,0.00029041,4]
[328980554,1718040641045,-500.0,0.00029041,4]
[328980555,1718040641055,-500.0,0.00029041,4]
[328980557,1718040641065,-500.0,0.00029041,4]
[328980559,1718040641076,-170.06791997,0.00029041,4]
[328980561,1718040641086,-500.0,0.00029041,4]
[328980564,1718040641096,-500.0,0.00029041,4]
[328980566,1718040641106,-500.0,0.00029041,4]
[328980567,1718040641116,-500.0,0.00029041,4]
[328980569,1718040641132,-633.60532889,0.00029041,4]
[328980571,1718040641142,-500.0,0.00029041,4]
[328980573,1718040641151,-500.0,0.00029041,4]
[328980576,1718040641161,-500.0,0.00029041,4]
[328980577,1718040641171,-500.0,0.00029041,4]
[328980580,1718040641181,-422.87807846,0.00029041,4]
[328980581,1718040641190,-500.0,0.00029041,4]
[328980583,1718040641200,-500.0,0.00029041,4]
[328980585,1718040641210,-500.0,0.00029041,4]
[328980587,1718040641220,-500.0,0.00029041,4]
[328980590,1718040641229,-500.0,0.00029041,4]
[328980592,1718040641239,-500.0,0.00029041,4]
[328980593,1718040641252,-500.0,0.00029041,4]
[328980595,1718040641262,-500.0,0.00029041,4]
[328980597,1718040641271,-500.0,0.00029041,4]
[328980599,1718040641283,-500.0,0.00029041,4]
[328980602,1718040641292,-500.0,0.00029041,4]
[328980603,1718040641302,-500.0,0.00029041,4]
[328980605,1718040641312,-500.0,0.00029041,4]
[328980607,1718040641321,-500.0,0.00029041,4]
[328980609,1718040641331,-500.0,0.00029041,4]
[328980611,1718040641340,-500.0,0.00029041,4]
[328980613,1718040641349,-500.0,0.00029041,4]
[328980615,1718040641360,-500.0,0.00029041,4]
[328980617,1718040641383,-500.0,0.00029041,4]
[328980619,1718040641407,-500.0,0.00029041,4]
[328980621,1718040641431,-500.0,0.00029041,4]
[328980623,1718040641456,-500.0,0.00029041,4]
[328980625,1718040641482,-500.0,0.00029041,4]
[328980627,1718040641516,-500.0,0.00029041,4]
[328980629,1718040641539,-500.0,0.00029041,4]
[328980631,1718040641548,-500.0,0.00029041,4]
[328980633,1718040641558,-500.0,0.00029041,4]
[328980635,1718040641568,-500.0,0.00029041,4]
[328980637,1718040641578,-500.0,0.00029041,4]
[328980639,1718040641588,-500.0,0.00029041,4]
[328980641,1718040641599,-500.0,0.00029041,4]
[328980643,1718040641613,-500.0,0.00029041,4]
[328980645,1718040641622,-500.0,0.00029041,4]
[328980647,1718040641631,-500.0,0.00029041,4]
[328980649,1718040641640,-500.0,0.00029041,4]
[328980651,1718040641651,-500.0,0.00029041,4]
[328980653,1718040641683,-500.0,0.00029041,4]
[328980655,1718040641717,-500.0,0.00029041,4]
[328980657,1718040641727,-500.0,0.00029041,4]
[328980660,1718040641748,-500.0,0.00029041,4]
[328980662,1718040641760,-500.0,0.00029041,4]
[328980664,1718040641770,-500.0,0.00029041,4]
[328980666,1718040641780,-500.0,0.00029041,4]
[328980668,1718040641791,-500.0,0.00029041,4]
[328980670,1718040641801,-500.0,0.00029041,4]
[328980672,1718040641812,-500.0,0.00029041,4]
[328980674,1718040641822,-500.0,0.00029041,4]
[328980676,1718040641832,-664.89,0.00029041,4]
[328980678,1718040641843,-500.0,0.00029041,4]
[328980680,1718040641853,-664.89,0.00029041,4]
[328980682,1718040641863,-664.89,0.00029041,4]
[328980684,1718040641873,-664.89,0.00029041,4]
[328980686,1718040641883,-676.24,0.00029041,4]
[328980689,1718040641893,-676.24,0.00029041,4]
[328980690,1718040641903,-676.24,0.00029041,4]
[328980692,1718040641914,-676.24,0.00029041,4]
[328980695,1718040641924,-500.0,0.00029041,4]
[328980697,1718040641934,-500.0,0.00029041,4]
[328980699,1718040641945,-500.0,0.00029041,4]
[328980701,1718040641956,-500.0,0.00029041,4]
[328980703,1718040641967,-500.0,0.00029041,4]
[328980705,1718040641978,-500.0,0.00029041,4]
[328980707,1718040641989,-500.0,0.00029041,4]
[328980709,1718040642001,-500.0,0.00029041,4]
[328980711,1718040642012,-500.0,0.00029041,4]
[328980713,1718040642023,-500.0,0.00029041,4]
[328980715,1718040642033,-500.0,0.00029041,4]
[328980717,1718040642044,-500.0,0.00029041,4]
[328980719,1718040642055,-583.64,0.00029041,4]
[328980721,1718040642068,-583.64,0.00029041,4]
[328980723,1718040642079,-2096.98,0.00029041,4]
[328980725,1718040642090,-583.64,0.00029041,4]
[328980727,1718040642101,-2096.98,0.00029041,4]
[328980729,1718040642113,-583.64,0.00029041,4]
[328980731,1718040642127,-2096.98,0.00029041,4]
[328980733,1718040642137,-2096.98,0.00029041,4]
[328980735,1718040642147,-500.0,0.00029041,4]
[328980737,1718040642157,-500.0,0.00029041,4]
[328980739,1718040642168,-500.0,0.00029041,4]
[328980741,1718040642178,-500.0,0.00029041,4]
[328980743,1718040642189,-500.0,0.00029041,4]
[328980745,1718040642199,-500.0,0.00029041,4]
[328980747,1718040642209,-500.0,0.00029041,4]
[328980749,1718040642219,-500.0,0.00029041,4]
[328980751,1718040642230,-159.09523798,0.00029041,4]
[328980753,1718040642241,-500.0,0.00029041,4]
[328980755,1718040642253,-500.0,0.00029041,4]
[328980757,1718040642263,-500.0,0.00029041,4]
[328980759,1718040642275,-500.0,0.00029041,4]
[328980761,1718040642285,-500.0,0.00029041,4]
[328980763,1718040642296,-500.0,0.00029041,4]
[328980765,1718040642306,-500.0,0.00029041,4]
[328980767,1718040642317,-500.0,0.00029041,4]
[328980769,1718040642328,-500.0,0.00029041,4]
[328980771,1718040642338,-500.0,0.00029041,4]
[328980773,1718040642349,-500.0,0.00029041,4]
[328980775,1718040642360,-500.0,0.00029041,4]
[328980777,1718040642370,-500.0,0.00029041,4]
[328980779,1718040642380,-500.0,0.00029041,4]
[328980781,1718040642389,-500.0,0.00029041,4]
[328980783,1718040642399,-500.0,0.00029041,4]
[328980785,1718040642409,-500.0,0.00029041,4]
[328980787,1718040642419,-500.0,0.00029041,4]
[328980789,1718040642428,-500.0,0.00029041,4]
[328980791,1718040642438,-500.0,0.00029041,4]
[328980793,1718040642449,-500.0,0.00029041,4]
[328980795,1718040642459,-500.0,0.00029041,4]
[328980797,1718040642469,-500.0,0.00029041,4]
[328980799,1718040642479,-629.1,0.00029041,4]
[328980801,1718040642489,-500.0,0.00029041,4]
[328980803,1718040642500,-500.0,0.00029041,4]
[328980805,1718040642510,-629.1,0.00029041,4]
[328980807,1718040642520,-500.0,0.00029041,4]
[328980809,1718040642531,-500.0,0.00029041,4]
[328980811,1718040642541,-629.1,0.00029041,4]
[328980813,1718040642551,-629.1,0.00029041,4]
[328980815,1718040642561,-500.0,0.00029041,4]
[328980817,1718040642571,-500.0,0.00029041,4]
[328980819,1718040642582,-581.17566333,0.00029041,4]
[328980835,1718040642746,-500.0,0.00029041,4]
[328980837,1718040642758,-500.0,0.00029041,4]
[328980839,1718040642769,-500.0,0.00029041,4]
[328980842,1718040642779,-500.0,0.00029041,4]
[328980844,1718040642788,-500.0,0.00029041,4]
[328980846,1718040642798,-500.0,0.00029041,4]
[328980849,1718040642808,-500.0,0.00029041,4]
[328980851,1718040642818,-500.0,0.00029041,4]
[328980854,1718040642829,-500.0,0.00029041,4]
[328980857,1718040642839,-830.95,0.00029041,4]
[328980860,1718040642849,-830.95,0.00029041,4]
[328980863,1718040642859,-830.95,0.00029041,4]
[328980865,1718040642869,-830.95,0.00029041,4]
[328980867,1718040642878,-1098.46,0.00029041,4]
[328980869,1718040642889,-1098.46,0.00029041,4]
[328980871,1718040642899,-1098.46,0.00029041,4]
[328980873,1718040642909,-1098.46,0.00029041,4]
[328980875,1718040642920,-500.0,0.00029041,4]
[328980877,1718040642932,-500.0,0.00029041,4]
[328980879,1718040642942,-500.0,0.00029041,4]
[328980881,1718040642953,-500.0,0.00029041,4]
[328980883,1718040642963,-500.0,0.00029041,4]
[328980885,1718040642974,-500.0,0.00029041,4]
[328980887,1718040642985,-266.33617173,0.00029041,4]
[328980889,1718040642996,-500.0,0.00029041,4]
[328980891,1718040643008,-500.0,0.00029041,4]
[328980893,1718040643018,-500.0,0.00029041,4]
[328980895,1718040643031,-500.0,0.00029041,4]
[328980897,1718040643041,-431.9590681,0.00029041,4]
[328980899,1718040643051,-545.5,0.00029041,4]
[328980901,1718040643062,-545.5,0.00029041,4]
[328980903,1718040643073,-545.5,0.00029041,4]
[328980905,1718040643084,-2213.63,0.00029041,4]
[328980907,1718040643095,-545.5,0.00029041,4]
[328980909,1718040643105,-2213.63,0.00029041,4]
[328980911,1718040643116,-2213.63,0.00029041,4]
[328980913,1718040643128,-2213.63,0.00029041,4]
[328980915,1718040643138,-2213.63,0.00029041,4]
[328980917,1718040643148,-500.0,0.00029041,4]
[328980919,1718040643158,-500.0,0.00029041,4]
[328980920,1718040643168,-500.0,0.00029041,4]
[328980922,1718040643178,-500.0,0.00029041,4]
[328980924,1718040643189,-500.0,0.00029041,4]
[328980926,1718040643199,-500.0,0.00029041,4]
[328980928,1718040643213,-500.0,0.00029041,4]
[328980930,1718040643237,-500.0,0.00029041,4]
[328980932,1718040643275,-500.0,0.00029041,4]
[328980934,1718040643318,-500.0,0.00029041,4]
[328980936,1718040643361,-500.0,0.00029041,4]
[328980940,1718040643382,-500.0,0.00029041,4]
[328980943,1718040643393,-500.0,0.00029041,4]
[328980946,1718040643403,-500.0,0.00029041,4]
[328980948,1718040643414,-534.5086575,0.00029041,2]
[328980950,1718040643425,-557.18697932,0.00029041,4]
[328980952,1718040643435,-500.0,0.00029041,4]
[328980954,1718040643445,-500.0,0.00029041,4]
[328980956,1718040643455,-585.59193148,0.00029041,4]
[328980958,1718040643466,-500.0,0.00029041,4]
[328980960,1718040643476,-500.0,0.00029041,4]
[328980962,1718040643486,-158.55633101,0.00029041,4]
[328980964,1718040643497,-500.0,0.00029041,4]
[328980966,1718040643507,-500.0,0.00029041,4]
[328980968,1718040643517,-500.0,0.00029041,2]
[328980970,1718040643527,-500.0,0.00029041,4]
[328980972,1718040643538,-500.0,0.00029041,2]
[328980974,1718040643548,-500.0,0.00029041,4]
[328980976,1718040643558,-500.0,0.00029041,2]
[328980978,1718040643568,-245.94880924,0.00029041,2]
[328980980,1718040643578,-483.21303645,0.00029041,2]
[328980982,1718040643588,-500.0,0.00029041,4]
[328980984,1718040643598,-500.0,0.00029041,4]
[328980986,1718040643613,-500.0,0.00029041,4]
[328980988,1718040643624,-500.0,0.00029041,4]
[328980990,1718040643634,-500.0,0.00029041,4]
[328980992,1718040643644,-182.05986979,0.00029041,2]
[328980994,1718040643655,-500.0,0.00029041,4]
[328980996,1718040643665,-500.0,0.00029041,4]
[328980998,1718040643675,-500.0,0.00029041,4]
[328981000,1718040643688,-500.0,0.00029041,4]
[328981001,1718040643698,-500.0,0.00029041,4]
[328981003,1718040643707,-500.0,0.00029041,4]
[328981005,1718040643717,-608.81,0.00029041,4]
[328981007,1718040643727,-500.0,0.00029041,4]
[328981010,1718040643737,-608.81,0.00029041,4]
[328981011,1718040643747,-500.0,0.00029041,4]
[328981013,1718040643757,-608.81,0.00029041,4]
[328981015,1718040643767,-500.0,0.00029041,4]
[328981017,1718040643777,-500.0,0.00029041,2]
[328981019,1718040643787,-608.81,0.00029041,4]
[328981021,1718040643796,-500.0,0.00029041,2]
[328981023,1718040643806,-500.0,0.00029041,2]
[328981025,1718040643816,-500.0,0.00029041,2]
[328981027,1718040643825,-500.0,0.00029041,2]
[328981029,1718040643836,-500.0,0.00029041,4]
[328981031,1718040643845,-500.0,0.00029041,4]
[328981033,1718040643855,-500.0,0.00029041,4]
[328981035,1718040643864,-500.0,0.00029041,4]
[328981037,1718040643875,-500.0,0.00029041,4]
[328981039,1718040643884,-500.0,0.00029041,4]
[328981040,1718040643894,-500.0,0.00029041,4]
[328981042,1718040643904,-500.0,0.00029041,4]
[328981044,1718040643914,-500.0,0.00029041,4]
[328981046,1718040643924,-500.0,0.00029041,4]
[328981048,1718040643934,-175.43611176,0.00029041,4]
[328981050,1718040643944,-500.0,0.00029041,4]
[328981052,1718040643953,-500.0,0.00029041,4]
[328981054,1718040643963,-500.0,0.00029041,4]
[328981056,1718040643973,-153.33956031,0.00029046,2]
[328981058,1718040643984,-4919.74,0.00029051,2]
[328981060,1718040643994,-154.94726371,0.00029093,2]
[328981062,1718040644006,-175.91858515,0.00029152,2]
[328981064,1718040644016,-690.0,0.000292,2]
[328981066,1718040644026,-175.91858515,0.00029248,2]
[328981068,1718040644037,-440.65221745,0.00029268,2]
[328981070,1718040644047,-4047.0,0.000293,2]
[328981072,1718040644057,-1006.3,0.000293,2]
[328981074,1718040644066,-300.84,0.000293,2]
[328981076,1718040644076,-155.91427048,0.0002932,2]
[328981078,1718040644086,-153.33956031,0.00029346,2]
[328981080,1718040644096,-155.0,0.00029398,2]
[328981082,1718040644105,-159.85713231,0.00029415,2]
[328981084,1718040644115,-151.0,0.00029428,7]
[328981086,1718040644128,-155.91427048,0.00029447,2]
[328981088,1718040644138,-440.65221745,0.00029479,2]
[328981090,1718040644147,-226.83464883,0.000295,3]
[328981092,1718040644158,-581.834488,0.000295,2]
[328981094,1718040644167,-2100.0,0.00029503,2]
[328981096,1718040644177,-417.254,0.00029503,2]
[328981098,1718040644187,-500.0,0.00029546,4]
[328981100,1718040644197,-500.0,0.00029546,4]
[328981102,1718040644207,-500.0,0.00029546,4]
[328981104,1718040644218,-500.0,0.00029546,4]
[328981106,1718040644228,-500.0,0.00029546,4]
[328981108,1718040644238,-426.14110605,0.00029546,4]
[328981110,1718040644248,-2213.63,0.00029546,4]
[328981112,1718040644260,-500.0,0.00029546,4]
[328981114,1718040644270,-500.0,0.00029546,4]
[328981115,1718040644280,-500.0,0.00029546,4]
[328981117,1718040644291,-500.0,0.00029546,4]
[328981119,1718040644301,-500.0,0.00029546,2]
[328981121,1718040644311,-500.0,0.00029546,4]
[328981123,1718040644321,-175.91858515,0.00029556,2]
[328981125,1718040644331,-160.0,0.00029583,2]
[328981127,1718040644343,-872.751733,0.000296,2]
[328981129,1718040644353,-155.91427048,0.00029623,2]
[328981130,1718040644363,-5800.0,0.00029639,2]
[328981131,1718040644372,-5800.0,0.00029647,2]
[328981132,1718040644382,-5800.0,0.00029656,2]
[328981133,1718040644392,-500.0,0.00029687,2]
[328981134,1718040644402,-500.0,0.00029687,2]
[328981135,1718040644411,-500.0,0.00029687,2]
[328981136,1718040644421,-500.0,0.00029687,2]
[328981137,1718040644431,-440.65221745,0.00029689,2]
[328981138,1718040644442,-153.33956031,0.00029694,2]
[328981139,1718040644455,-339.17922691,0.00029698,2]
[328981140,1718040644470,-11666.31250693,0.000297,2]
[328981141,1718040644483,-4762.85957145,0.000297,2]
[328981143,1718040644500,-500.0,0.000297,3]
[328981145,1718040644512,-1163.668977,0.000297,2]
[328981147,1718040644523,-4000.0,0.000297,2]
[328981150,1718040644536,-4000.0,0.000297,2]
[328981152,1718040644548,-2878.0327,0.000297,2]
[328981154,1718040644560,-346.20145903,0.000297,3]
[328981156,1718040644572,-157.06563925,0.000297,7]
[328981159,1718040644586,-264.42956,0.000297,2]
[328981161,1718040644599,-500.0,0.000297,2]
[328981163,1718040644615,-500.0,0.000297,2]
[328981165,1718040644628,-716.0,0.000297,2]
[328981168,1718040644644,-716.0,0.000297,2]
[328981170,1718040644657,-716.0,0.000297,2]
[328981172,1718040644670,-716.0,0.000297,2]
[328981174,1718040644684,-716.0,0.000297,2]
[328981177,1718040644697,-716.0,0.000297,2]
[328981179,1718040644711,-716.0,0.000297,2]
[328981181,1718040644723,-716.0,0.000297,2]
[328981183,1718040644735,-716.0,0.000297,2]
[328981186,1718040644748,-716.0,0.000297,2]
[328981188,1718040644763,-500.0,0.000297,2]
[328981190,1718040644775,-500.0,0.000297,2]
[328981193,1718040644788,-500.0,0.000297,2]
[328981195,1718040644800,-151.0,0.00029714,7]
[328981197,1718040644811,-175.91858515,0.00029717,2]
[328981199,1718040644823,-200.0,0.0002976,2]
[328981201,1718040644836,-500.0,0.0002976,2]
[328981203,1718040644847,-200.0,0.0002976,2]
[328981206,1718040644861,-1454.586222,0.000298,2]
[328981208,1718040644873,-2036.420711,0.000298,2]
[328981210,1718040644885,-2327.337955,0.000298,30]
[328981212,1718040644897,-219.61,0.00029808,2]
[328981214,1718040644909,-155.0,0.0002981,2]
[328981217,1718040644922,-175.91858515,0.00029811,2]
[328981219,1718040644936,-10000.0,0.00029845,2]
[328981221,1718040644949,-500.0,0.00029868,4]
[328981223,1718040644961,-500.0,0.00029868,4]
[328981225,1718040644972,-500.0,0.00029869,4]
[328981228,1718040644983,-500.0,0.00029869,4]
[328981230,1718040644993,-175.91858515,0.00029874,2]
[328981231,1718040645004,-500.0,0.00029897,4]
[328981234,1718040645021,-500.0,0.00029897,4]
[328981236,1718040645034,-500.0,0.00029897,4]
[328981239,1718040645046,-500.0,0.00029897,4]
[328981241,1718040645058,-500.0,0.00029897,4]
[328981243,1718040645072,-500.0,0.00029897,4]
[328981245,1718040645083,-500.0,0.00029897,4]
[328981247,1718040645093,-500.0,0.00029897,4]
[328981249,1718040645105,-500.0,0.00029897,4]
[328981252,1718040645117,-500.0,0.00029897,4]
[328981254,1718040645133,-500.0,0.00029897,4]
[328981256,1718040645144,-500.0,0.00029897,4]
[328981258,1718040645157,-500.0,0.00029897,4]
[328981260,1718040645168,-528.15647375,0.00029897,4]
[328981263,1718040645181,-601.2768129,0.00029897,4]
[328981265,1718040645192,-500.0,0.00029897,4]
[328981267,1718040645203,-507.19269966,0.00029897,4]
[328981269,1718040645215,-500.0,0.00029897,4]
[328981271,1718040645226,-500.0,0.00029897,4]
[328981274,1718040645237,-500.0,0.00029897,4]
[328981277,1718040645249,-500.0,0.00029897,4]
[328981279,1718040645262,-1522.44,0.00029897,4]
[328981282,1718040645274,-1522.44,0.00029897,4]
[328981284,1718040645285,-500.0,0.00029897,4]
[328981286,1718040645295,-500.0,0.00029897,4]
[328981288,1718040645306,-500.0,0.00029897,4]
[328981290,1718040645317,-500.0,0.00029897,4]
[328981292,1718040645328,-500.0,0.00029897,4]
[328981294,1718040645339,-500.0,0.00029897,4]
[328981296,1718040645350,-500.0,0.00029897,4]